fUST/lending_fUST_20250227
["ID","MTS","AMOUNT","RATE_DAILY","PERIOD"]
[354663047,1740605432374,-151.0,0.00273973,120]
[354663048,1740605432383,-453.731806,0.00273973,120]
[354663049,1740605432393,-453.731806,0.00273973,120]
[354663050,1740605432403,-453.731806,0.00273973,120]
[354663051,1740605432412,-453.731806,0.00273973,120]
[354663052,1740605432422,-453.731806,0.00273973,120]
[354663053,1740605432432,-453.731806,0.00273973,120]
[354663054,1740605432441,-453.731806,0.00273973,120]
[354663055,1740605432451,-453.731806,0.00273973,120]
[354663056,1740605432461,-453.731806,0.00273973,120]
[354663057,1740605432470,-453.731806,0.00273973,120]
[354663058,1740605432480,-453.731806,0.00273973,120]
[354663059,1740605432489,-453.731806,0.00273973,120]
[354663060,1740605432499,-453.731806,0.00273973,120]
[354663061,1740605432509,-453.731806,0.00273973,120]
[354663062,1740605432519,-453.731806,0.00273973,120]
[354663063,1740605432528,-453.731806,0.00273973,120]
[354663064,1740605432538,-453.731806,0.00273973,120]
[354663065,1740605432550,-453.731806,0.00273973,120]
[354663066,1740605432560,-453.731806,0.00273973,120]
[354663067,1740605432569,-453.731809,0.00273973,120]
[354663068,1740605432579,-151.0,0.00273973,120]
[354663069,1740605432589,-151.0,0.00273973,120]
[354663070,1740605432598,-151.0,0.00273973,120]
[354663071,1740605432608,-151.0,0.00273973,120]
[354663072,1740605432618,-151.0,0.00273973,120]
[354663073,1740605432627,-151.0,0.00273973,120]
[354663074,1740605432637,-151.0,0.00273973,120]
[354663075,1740605432646,-217.066774,0.00273973,120]
[354663076,1740605432656,-151.0,0.00273973,120]
[354663077,1740605432666,-151.0,0.00273973,120]
[354663078,1740605432675,-151.0,0.00273973,120]
[354663079,1740605432684,-151.0,0.00273973,120]
[354663080,1740605432694,-151.0,0.00273973,120]
[354663081,1740605432704,-151.0,0.00273973,120]
[354663082,1740605432713,-153.305354,0.00273973,120]
[354663083,1740605432723,-151.0,0.00273973,120]
[354663084,1740605432732,-151.0,0.00273973,120]
[354663085,1740605432742,-252.68594,0.00273973,120]
[354663086,1740605432752,-257.217935,0.00273973,120]
[354663087,1740605432762,-257.217935,0.00273973,120]
[354663088,1740605432771,-257.217935,0.00273973,120]
[354663089,1740605432781,-257.217935,0.00273973,120]
[354663090,1740605432790,-257.217935,0.00273973,120]
[354663091,1740605432804,-257.217935,0.00273973,120]
[354663092,1740605432814,-257.217935,0.00273973,120]
[354663093,1740605432823,-257.217935,0.00273973,120]
[354663094,1740605432833,-257.217935,0.00273973,120]
[354663095,1740605432843,-257.217935,0.00273973,120]
[354663096,1740605432852,-257.217935,0.00273973,120]
[354663097,1740605432862,-257.217935,0.00273973,120]
[354663098,1740605432871,-257.217935,0.00273973,120]
[354663099,1740605432881,-575.259542,0.00273973,120]
[354663100,1740605432891,-257.217935,0.00273973,120]
[354663101,1740605432900,-575.259542,0.00273973,120]
[354663102,1740605432910,-257.217935,0.00273973,120]
[354663103,1740605432919,-575.259542,0.00273973,120]
[354663104,1740605432928,-257.217935,0.00273973,120]
[354663105,1740605432938,-575.259542,0.00273973,120]
[354663106,1740605432947,-257.217935,0.00273973,120]
[354663107,1740605432957,-575.259542,0.00273973,120]
[354663108,1740605432967,-257.217935,0.00273973,120]
[354663109,1740605432977,-575.259542,0.00273973,120]
[354663110,1740605432987,-145.27139405,0.00273973,120]
[354663111,1740605433004,-111.94654095,0.00273973,120]
[354663112,1740605433013,-575.259542,0.00273973,120]
[354663113,1740605433023,-257.21794,0.00273973,120]
[354663114,1740605433033,-575.259542,0.00273973,120]
[354663115,1740605433043,-575.259542,0.00273973,120]
[354663116,1740605433054,-575.259542,0.00273973,120]
[354663117,1740605433064,-575.259542,0.00273973,120]
[354663118,1740605433074,-575.259542,0.00273973,120]
[354663119,1740605433083,-575.259542,0.00273973,120]
[354663120,1740605433093,-575.259542,0.00273973,120]
[354663121,1740605433103,-575.259542,0.00273973,120]
[354663122,1740605433113,-575.259542,0.00273973,120]
[354663123,1740605433123,-575.259542,0.00273973,120]
[354663124,1740605433133,-575.259542,0.00273973,120]
[354663125,1740605433143,-575.259542,0.00273973,120]
[354663126,1740605433154,-575.25955,0.00273973,120]
[354663127,1740605433163,-214.696281,0.00273973,120]
[354663128,1740605433173,-214.696281,0.00273973,120]
[354663129,1740605433184,-214.696281,0.00273973,120]
[354663130,1740605433194,-214.696281,0.00273973,120]
[354663131,1740605433204,-214.696281,0.00273973,120]
[354663132,1740605433214,-214.696281,0.00273973,120]
[354663133,1740605433226,-214.696281,0.00273973,120]
[354663134,1740605433236,-214.696281,0.00273973,120]
[354663135,1740605433246,-214.696281,0.00273973,120]
[354663136,1740605433259,-151.0,0.00273973,120]
[354663137,1740605433268,-214.696281,0.00273973,120]
[354663138,1740605433278,-151.0,0.00273973,120]
[354663139,1740605433299,-214.696281,0.00273973,120]
[354663140,1740605433311,-151.0,0.00273973,120]
[354663141,1740605433321,-214.696281,0.00273973,120]
[354663142,1740605433333,-151.0,0.00273973,120]
[354663143,1740605433344,-214.696281,0.00273973,120]
[354663144,1740605433354,-214.696281,0.00273973,120]
[354663145,1740605433365,-151.0,0.00273973,120]
[354663146,1740605433375,-214.696281,0.00273973,120]
[354663147,1740605433386,-214.696281,0.00273973,120]
[354663148,1740605433397,-151.0,0.00273973,120]
[354663149,1740605433408,-214.696281,0.00273973,120]
[354663150,1740605433419,-151.0,0.00273973,120]
[354663151,1740605433432,-214.696281,0.00273973,120]
[354663152,1740605433443,-151.0,0.00273973,120]
[354663153,1740605433454,-151.0,0.00273973,120]
[354663154,1740605433464,-214.696281,0.00273973,120]
[354663155,1740605433476,-191.407704,0.00273973,120]
[354663156,1740605433486,-152.113893,0.00273973,120]
[354663157,1740605433496,-152.113893,0.00273973,120]
[354663158,1740605433507,-152.113893,0.00273973,120]
[354663159,1740605433517,-152.113893,0.00273973,120]
[354663160,1740605433527,-152.113893,0.00273973,120]
[354663161,1740605433536,-152.113893,0.00273973,120]
[354663162,1740605433548,-152.113893,0.00273973,120]
[354663163,1740605433558,-152.113893,0.00273973,120]
[354663164,1740605433568,-152.113893,0.00273973,120]
[354663165,1740605433578,-152.113893,0.00273973,120]
[354663166,1740605433588,-152.113893,0.00273973,120]
[354663167,1740605433598,-152.113899,0.00273973,120]
[354663168,1740605433608,-151.0,0.00273973,120]
[354663169,1740605433617,-151.0,0.00273973,120]
[354663170,1740605433627,-151.0,0.00273973,120]
[354663171,1740605433637,-151.0,0.00273973,120]
[354663172,1740605433647,-151.0,0.00273973,120]
[354663173,1740605433656,-151.0,0.00273973,120]
[354663174,1740605433667,-258.505134,0.00273973,120]
[354663175,1740605433676,-473.994648,0.00273973,110]
[354663176,1740605433686,-473.994648,0.00273973,110]
[354663177,1740605433696,-473.994648,0.00273973,110]
[354663178,1740605433705,-473.994648,0.00273973,110]
[354663179,1740605433714,-473.994648,0.00273973,110]
[354663180,1740605433724,-473.994648,0.00273973,110]
[354663181,1740605433734,-473.994648,0.00273973,110]
[354663182,1740605433743,-473.994648,0.00273973,110]
[354663183,1740605433753,-315.74735984,0.00273973,110]
[354663184,1740605433767,-158.24728816,0.00273973,110]
[354663185,1740605433777,-473.994648,0.00273973,110]
[354663186,1740605433786,-287.2673552,0.00273973,110]
[354663187,1740605433800,-186.7272928,0.00273973,110]
[354663188,1740605433810,-473.994648,0.00273973,110]
[354663189,1740605433820,-290.68700474,0.00273973,110]
[354663190,1740605433832,-183.30764326,0.00273973,110]
[354663191,1740605433842,-473.994648,0.00273973,110]
[354663192,1740605433852,-473.994648,0.00273973,110]
[354663193,1740605433862,-473.994648,0.00273973,110]
[354663194,1740605433872,-473.994648,0.00273973,110]
[354663195,1740605433882,-473.994648,0.00273973,110]
[354663196,1740605433892,-473.994648,0.00273973,110]
[354663197,1740605433902,-463.57667454,0.00273973,120]
[354663198,1740605433914,-114.11970746,0.00273973,120]
[354663199,1740605433925,-577.696382,0.00273973,120]
[354663200,1740605433935,-577.696382,0.00273973,120]
[354663201,1740605433945,-577.696382,0.00273973,120]
[354663202,1740605433954,-577.696382,0.00273973,120]
[354663203,1740605433964,-577.696382,0.00273973,120]
[354663204,1740605433974,-577.696382,0.00273973,120]
[354663205,1740605433983,-577.696382,0.00273973,120]
[354663206,1740605433993,-577.696382,0.00273973,120]
[354663207,1740605434003,-577.696382,0.00273973,120]
[354663208,1740605434013,-577.696382,0.00273973,120]
[354663209,1740605434023,-577.696382,0.00273973,120]
[354663210,1740605434034,-577.696382,0.00273973,120]
[354663211,1740605434048,-577.696382,0.00273973,120]
[354663212,1740605434061,-577.696382,0.00273973,120]
[354663213,1740605434072,-577.696382,0.00273973,120]
[354663214,1740605434083,-577.696382,0.00273973,120]
[354663215,1740605434094,-577.696382,0.00273973,120]
[354663216,1740605434105,-577.696382,0.00273973,120]
[354663217,1740605434116,-577.696392,0.00273973,120]
[354663218,1740605434128,-151.0,0.00273973,120]
[354663219,1740605434140,-151.0,0.00273973,120]
[354663220,1740605434152,-151.0,0.00273973,120]
[354663221,1740605434163,-151.0,0.00273973,120]
[354663222,1740605434175,-151.0,0.00273973,120]
[354663223,1740605434186,-151.0,0.00273973,120]
[354663224,1740605434197,-151.0,0.00273973,120]
[354663225,1740605434209,-6500.0,0.00279849,14]
[354663226,1740605434219,-487.64,0.002852,87]
[354663227,1740605434230,-487.64,0.002852,87]
[354663228,1740605434241,-487.64,0.002852,87]
[354663229,1740605434251,-487.64,0.002852,87]
[354663230,1740605434263,-487.64,0.002852,87]
[354663231,1740605434276,-487.64,0.002852,87]
[354663232,1740605434286,-487.64,0.002852,87]
[354663233,1740605434302,-487.64,0.002852,87]
[354663234,1740605434312,-487.64,0.002852,87]
[354663235,1740605434323,-487.64,0.002852,87]
[354663236,1740605434334,-487.64,0.002852,87]
[354663237,1740605434349,-487.64,0.002852,87]
[354663238,1740605434360,-487.64,0.002852,87]
[354663239,1740605434371,-487.64,0.002852,87]
[354663240,1740605434381,-487.64,0.002852,87]
[354663241,1740605434392,-487.64,0.002852,87]
[354663242,1740605434403,-487.64,0.002852,87]
[354663243,1740605434413,-487.64,0.002852,87]
[354663244,1740605434423,-487.64,0.002852,87]
[354663245,1740605434434,-487.64,0.002852,87]
[354663246,1740605434444,-487.64,0.002852,87]
[354663247,1740605434454,-487.64,0.002852,87]
[354663248,1740605434464,-487.64,0.002852,87]
[354663249,1740605434474,-487.64,0.002852,87]
[354663250,1740605434484,-3000.0,0.002889,120]
[354663251,1740605434493,-660.21482658,0.00291486,86]
[354663252,1740605434503,-5000.0,0.002969,120]
[354663253,1740605434513,-1000.0,0.003,120]
[354663254,1740605434522,-500.0,0.003,120]
[354663255,1740605434532,-7000.0,0.00308906,14]
[354663256,1740605434542,-7500.0,0.00339104,14]
[354663257,1740605434558,-8000.0,0.003704,14]
[354663258,1740605434568,-500.0,0.004,120]
[354663259,1740605434578,-5576.12673126,0.004,120]
[354663260,1740605434588,-8500.0,0.00402758,14]
[354663261,1740605434597,-151.71,0.00407,60]
[354663262,1740605434607,-9000.0,0.00436143,14]
[354663263,1740605434616,-157.498204,0.00442775,4]
[354663264,1740605434627,-180.2181345,0.0045,120]
[354663265,1740605434636,-4091.50131813,0.00470525,14]
[354663266,1740605434646,-3000.0,0.004889,120]
[354663267,1740605434656,-37044.55112954,0.0049,120]
[354663268,1740605434666,-5000.0,0.004969,120]
[354663269,1740605434676,-1000.0,0.005,120]
[354663270,1740605434839,-500.0,0.005,120]
[354663271,1740605434856,-1023.1266183,0.005,120]
[354663272,1740605434866,-1533.39217932,0.005,120]
[354663273,1740605434876,-25000.0,0.005,90]
[354663274,1740605434885,-60108.6955645,0.005,120]
[354663275,1740605434895,-157.498204,0.005,2]
[354663276,1740605434905,-487.64,0.005085,87]
[354663277,1740605434915,-487.64,0.005085,87]
[354663278,1740605434926,-487.64,0.005085,87]
[354663279,1740605434936,-487.64,0.005085,87]
[354663280,1740605434946,-487.64,0.005085,87]
[354663281,1740605434957,-487.64,0.005085,87]
[354663282,1740605434966,-487.64,0.005085,87]
[354663283,1740605434975,-487.64,0.005085,87]
[354663284,1740605434985,-487.64,0.005085,87]
[354663285,1740605434994,-487.64,0.005085,87]
[354663286,1740605435003,-487.64,0.005085,87]
[354663287,1740605435013,-487.64,0.005085,87]
[354663288,1740605435023,-487.64,0.005085,87]
[354663289,1740605435032,-487.64,0.005085,87]
[354663290,1740605435042,-487.64,0.005085,87]
[354663291,1740605435056,-487.64,0.005085,87]
[354663292,1740605435066,-487.64,0.005085,87]
[354663293,1740605435075,-487.64,0.005085,87]
[354663294,1740605435084,-487.64,0.005085,87]
[354663295,1740605435094,-487.64,0.005085,87]
[354663296,1740605435103,-487.64,0.005085,87]
[354663297,1740605435113,-487.64,0.005085,87]
[354663298,1740605435123,-487.64,0.005085,87]
[354663299,1740605435133,-487.64,0.005085,87]
[354663300,1740605435143,-155.17303531,0.0052739,120]
[354663301,1740605435152,-660.21482658,0.00531072,120]
[354663302,1740605435164,-955.08295693,0.00533486,120]
[354663303,1740605435174,-153.0,0.0055348,120]
[354663304,1740605435183,-153.0,0.0055348,120]
[354663305,1740605435194,-153.0,0.0055348,120]
[354663306,1740605435205,-153.0,0.0055348,120]
[354663307,1740605435216,-153.0,0.00553521,120]
[354663308,1740605435227,-153.0,0.00553521,120]
[354663309,1740605435237,-153.0,0.0055387,120]
[354663310,1740605435247,-153.0,0.0055387,120]
[354663311,1740605435260,-153.0,0.0055387,120]
[354663312,1740605435270,-153.0,0.0055387,120]
[354663313,1740605435280,-153.0,0.00553909,120]
[354663314,1740605435291,-153.0,0.00553909,120]
[354663315,1740605435307,-153.0,0.00553909,120]
[354663316,1740605435317,-153.0,0.00554255,120]
[354663317,1740605435327,-153.0,0.00554255,120]
[354663318,1740605435340,-153.0,0.00554255,120]
[354663319,1740605435350,-153.0,0.00554255,120]
[354663320,1740605435360,-153.0,0.00554299,120]
[354663321,1740605435369,-153.0,0.00554299,120]
[354663322,1740605435379,-153.0,0.00554648,120]
[354663323,1740605435388,-153.0,0.00554648,120]
[354663324,1740605435398,-153.0,0.00554648,120]
[354663325,1740605435408,-153.0,0.00554648,120]
[354663326,1740605435417,-153.0,0.00554687,120]
[354663327,1740605435427,-153.0,0.00554687,120]
[354663328,1740605435436,-153.0,0.00554687,120]
[354663329,1740605435446,-153.0,0.00555036,120]
[354663330,1740605435456,-153.0,0.00555036,120]
[354663331,1740605435468,-153.0,0.00555036,120]
[354663332,1740605435486,-153.0,0.00555036,120]
[354663333,1740605435507,-153.0,0.00555036,120]
[354663334,1740605435520,-153.0,0.00555079,120]
[354663335,1740605435533,-153.0,0.00555079,120]
[354663336,1740605435548,-153.0,0.00556222,120]
[354663337,1740605435559,-153.0,0.00556222,120]
[354663338,1740605435570,-5248.43970258,0.0056,120]
[354663339,1740605435580,-13892.2145,0.0056723,120]
[354663340,1740605435591,-8646.7149,0.0056723,120]
[354663341,1740605435602,-6598.78469999,0.005723,120]
[354663342,1740605435613,-272316.68685726,0.00577,30]
[354663343,1740605435628,-17018.54249868,0.00577,30]
[354663344,1740605435737,162.64,0.000729,30]
[354663345,1740605435823,557.5803526,0.00069293,60]
[354663346,1740605435871,162.64,0.000969,60]
[354663347,1740605435919,162.64,0.00126,60]
[354663348,1740605435969,500.0,0.00052054,120]
[354663349,1740605436016,150.0,0.00120193,120]
[354663350,1740605436064,500.0,0.00052328,120]
[354663351,1740605436227,500.0,0.00052602,120]
[354663352,1740605436279,500.0,0.00052876,120]
[354663353,1740605436334,500.0,0.0005315,120]
[354663354,1740605436386,388.98514302,0.00053424,120]
[354663355,1740605436431,157.03,0.00137,60]
[354663372,1740605437790,-162.64,0.00179,60]
[354663373,1740605437800,-162.64,0.0049,60]
[354663374,1740605437810,-96.255,0.00556,120]
[354663375,1740605437874,-60.775,0.00556,120]
[354663376,1740605437884,-481.275,0.00576999,31]
[354663377,1740605437896,-18.725,0.00576999,31]
[354663378,1740605437907,-464.93342458,0.00576999,120]
[354663379,1740605437917,-164.3337863,0.00576999,31]
[354663380,1740605437929,-500.0,0.00576999,31]
[354663381,1740605437939,-3701.97713709,0.00577,30]
[354663382,1740605437951,-5956.76183432,0.00577,30]
[354663383,1740605437966,-1100.1,0.0057699,120]
[354663384,1740605437975,-1187.35766016,0.00577,30]
[354663400,1740605440513,-147889.85433983,0.00577,30]
[354663412,1740605442361,1000.0,0.00068493,60]
[354663433,1740605442620,500.0,0.00052054,120]
[354663434,1740605442663,1000.0,0.00068493,60]
[354663441,1740605442873,500.0,0.00052328,120]
[354663442,1740605442935,1000.0,0.00068493,60]
[354663443,1740605442947,-644.95453371,0.00577,30]
[354663476,1740605449237,-55.51065807,0.00577,30]
[354663477,1740605449250,-846.845,0.00577,30]
[354663478,1740605449263,-2978.42178841,0.00577,30]
[354663479,1740605449310,-1611.5072042,0.00577,30]
[354663480,1740605449322,-16971.20321723,0.00577,30]
[354663481,1740605449368,500.0,0.00052602,120]
[354663482,1740605449412,1000.0,0.00068493,60]
[354663483,1740605449458,500.0,0.00052876,120]
[354663484,1740605449500,1000.0,0.00068493,60]
[354663485,1740605449557,500.0,0.0005315,120]
[354663486,1740605449605,711.77611592,0.00068493,60]
[354663487,1740605449784,500.0,0.00052054,30]
[354663488,1740605449930,-202.71149148,0.00402757,31]
[354663489,1740605449939,-500.0,0.00402757,120]
[354663490,1740605449948,-500.0,0.00402757,120]
[354663491,1740605449957,-500.0,0.00402757,2]
[354663492,1740605449966,-500.0,0.00402757,120]
[354663493,1740605449976,-500.0,0.00402757,120]
[354663494,1740605449985,-500.0,0.00402757,120]
[354663495,1740605449995,-500.0,0.00402757,120]
[354663496,1740605450004,-500.0,0.00402757,2]
[354663497,1740605450014,-317.11013039,0.00402757,120]
[354663498,1740605450023,-500.0,0.00402757,120]
[354663499,1740605450033,-286.39228717,0.00402757,2]
[354663500,1740605450043,-597.01487936,0.00402757,120]
[354663501,1740605450053,-500.0,0.00402757,120]
[354663502,1740605450065,-500.0,0.00402757,120]
[354663503,1740605450075,-397.84426451,0.00402757,120]
[354663504,1740605450085,-500.0,0.00402757,120]
[354663505,1740605450094,-500.0,0.00576999,120]
[354663506,1740605450103,-500.0,0.00576999,120]
[354663507,1740605450112,-500.0,0.00576999,120]
[354663508,1740605450122,-500.0,0.00576999,120]
[354663509,1740605450133,-500.0,0.00576999,120]
[354663510,1740605450142,-500.0,0.00576999,120]
[354663511,1740605450153,-327.03834332,0.00576999,120]
[354663512,1740605450163,-28820.37727104,0.00577,30]
[354663513,1740605450172,-2200.0,0.00577,120]
[354663514,1740605450181,-23115.18819297,0.006,120]
[354663515,1740605450192,-500.0,0.00626316,120]
[354663516,1740605450202,-40123.46227942,0.00629999,120]
[354663517,1740605450211,-82806.48821714,0.00645,120]
[354663518,1740605450220,-119773.66306962,0.00649898,120]
[354663519,1740605450230,-480.0,0.00653713,120]
[354663520,1740605450240,-5954.84724214,0.00671632,30]
[354663521,1740605450249,-23892.2145,0.006723,120]
[354663522,1740605450262,-500.0,0.00684904,120]
[354663523,1740605450271,-500.0,0.00684904,120]
[354663524,1740605450281,-500.0,0.00684904,120]
[354663525,1740605450290,-500.0,0.00684904,120]
[354663526,1740605450300,-500.0,0.00684904,120]
[354663527,1740605450311,-500.0,0.00684904,120]
[354663528,1740605450320,-500.0,0.00684904,120]
[354663529,1740605450332,-500.0,0.00684904,120]
[354663530,1740605450341,-500.0,0.00684904,120]
[354663531,1740605450350,-500.0,0.00684904,120]
[354663532,1740605450360,-500.0,0.00684904,120]
[354663533,1740605450369,-500.0,0.00684904,120]
[354663534,1740605450379,-500.0,0.00684904,120]
[354663535,1740605450388,-500.0,0.00684904,120]
[354663536,1740605450397,-500.0,0.00684904,120]
[354663537,1740605450406,-500.0,0.00684904,120]
[354663538,1740605450415,-500.0,0.00684904,120]
[354663539,1740605450426,-500.0,0.00684904,120]
[354663540,1740605450435,-500.0,0.00684904,120]
[354663541,1740605450444,-500.0,0.00684904,120]
[354663542,1740605450454,-152.40590414,0.00684904,120]
[354663543,1740605450463,-440.0,0.00685043,120]
[354663544,1740605450472,-3000.0,0.006889,120]
[354663545,1740605450481,-9102.58427728,0.0069,120]
[354663546,1740605450490,-220.84176275,0.00696849,120]
[354663547,1740605450499,-5000.0,0.006969,120]
[354663548,1740605450508,-14521.83317801,0.007,120]
[354663549,1740605450518,-162.64,0.007,60]
[354663550,1740605450527,-37609.66436133,0.0071,120]
[354663551,1740605450536,-150.0,0.007125,120]
[354663552,1740605450545,-150.0,0.007125,120]
[354663553,1740605450555,-150.0,0.007135,120]
[354663554,1740605450566,-200.0,0.007145,120]
[354663555,1740605450575,-20893.47676826,0.00717428,120]
[354663556,1740605450584,-380.0,0.00718052,120]
[354663557,1740605450594,-5000.0,0.007199,120]
[354663558,1740605450603,-8646.7149,0.00723,120]
[354663559,1740605450612,-23892.2145,0.00725,120]
[354663560,1740605450621,-150.0,0.007289,120]
[354663561,1740605450630,-150.0,0.007289,120]
[354663562,1740605450639,-20000.0,0.00729,120]
[354663563,1740605450649,-150.0,0.007299,120]
[354663564,1740605450658,-250.0,0.007299,120]
[354663565,1740605450668,-5000.0,0.007299,120]
[354663566,1740605450678,-200.0,0.007309,120]
[354663567,1740605450687,-487.64,0.007319,87]
[354663568,1740605450697,-487.64,0.007319,87]
[354663569,1740605450706,-487.64,0.007319,87]
[354663570,1740605450716,-487.64,0.007319,87]
[354663571,1740605450725,-487.64,0.007319,87]
[354663572,1740605450735,-487.64,0.007319,87]
[354663573,1740605450744,-487.64,0.007319,87]
[354663574,1740605450754,-487.64,0.007319,87]
[354663575,1740605450763,-487.64,0.007319,87]
[354663576,1740605450773,-487.64,0.007319,87]
[354663577,1740605450783,-487.64,0.007319,87]
[354663578,1740605450792,-487.64,0.007319,87]
[354663579,1740605450801,-487.64,0.007319,87]
[354663580,1740605450811,-487.64,0.007319,87]
[354663581,1740605450820,-487.64,0.007319,87]
[354663582,1740605450830,-487.64,0.007319,87]
[354663583,1740605450839,-487.64,0.007319,87]
[354663584,1740605450849,-487.64,0.007319,87]
[354663585,1740605450859,-487.64,0.007319,87]
[354663586,1740605450869,-487.64,0.007319,87]
[354663587,1740605450879,-487.64,0.007319,87]
[354663588,1740605450888,-487.64,0.007319,87]
[354663589,1740605450898,-487.64,0.007319,87]
[354663590,1740605450908,-487.64,0.007319,87]
[354663591,1740605450918,-1014990.0,0.00738,120]
[354663592,1740605450927,-719.84479488,0.0074,120]
[354663593,1740605450936,-22647.96969204,0.007425,120]
[354663594,1740605450945,-20673.82923478,0.00747,120]
[354663595,1740605450954,-10000.0,0.00747,120]
[354663596,1740605450964,-1005.0,0.0074747,120]
[354663597,1740605450973,-5000.0,0.007488,120]
[354663598,1740605450983,-5000.0,0.007488,120]
[354663599,1740605450992,-5000.0,0.007488,120]
[354663600,1740605451002,-10000.0,0.007488,120]
[354663601,1740605451011,-10000.0,0.00748888,120]
[354663602,1740605451020,-5000.0,0.007499,120]
[354663603,1740605451030,-5000.0,0.007499,120]
[354663604,1740605451039,-10000.0,0.007499,120]
[354663605,1740605451049,-5000.0,0.0074999,120]
[354663606,1740605451059,-5000.0,0.0074999,120]
[354663607,1740605451073,-10000.0,0.0074999,120]
[354663608,1740605451082,-151.0,0.00749999,120]
[354663609,1740605451222,-1000.0,0.0075,120]
[354663610,1740605451236,-150.0,0.0075,14]
[354663611,1740605451246,-150.0,0.0075,14]
[354663612,1740605451255,-5000.0,0.0075,120]
[354663613,1740605451267,-10000.0,0.0075,120]
[354663614,1740605451317,355.4786638,0.00069293,60]
[354663615,1740605451367,355.4786638,0.00069293,60]
[354663616,1740605451411,154.8760086,0.00069293,60]
[354663617,1740605451479,355.4786638,0.00069293,60]
[354663618,1740605455923,1514.636488,0.000974,120]
[354663619,1740605457055,509.35374891,0.00052054,120]
[354663620,1740605459142,1514.636488,0.000974,120]
[354663621,1740605462717,502.04530904,0.00052054,120]
[354663627,1740606224396,-151.0,0.00045,120]
[354663628,1740606224437,-3463.15858514,0.00051954,120]
[354663629,1740606224480,-424.0,0.00051998,15]
[354663630,1740606224520,-500.0,0.00051999,120]
[354663631,1740606224562,-500.0,0.00051999,120]
[354663632,1740606224605,-171.091,0.00051999,94]
[354663633,1740606224642,-175.046,0.00051999,94]
[354663634,1740606224679,-150.76,0.00052054,30]
[354663635,1740606224714,-500.0,0.00052054,120]
[354663636,1740606224749,-500.0,0.00052054,120]
[354663637,1740606224782,-500.0,0.00052054,120]
[354663638,1740606224814,-238.91887548,0.00052054,120]
[354663639,1740606224848,-352.65659882,0.00052054,120]
[354663640,1740606224882,-500.0,0.00052054,120]
[354663641,1740606224915,-500.0,0.00052054,120]
[354663642,1740606224949,-500.0,0.00052054,120]
[354663643,1740606224984,-500.0,0.00052054,120]
[354663644,1740606225023,-500.0,0.00052054,120]
[354663645,1740606225060,-500.0,0.00052054,120]
[354663646,1740606225094,-500.0,0.00052054,120]
[354663647,1740606225130,-513.82727135,0.00052054,120]
[354663648,1740606225166,-500.0,0.00052054,120]
[354663649,1740606225202,-500.0,0.00052054,120]
[354663650,1740606225238,-500.0,0.00052054,120]
[354663651,1740606225273,-500.0,0.00052054,120]